[Event "Late-Titled-Tuesday-Blitz-April-30-2024"]
[Site "Chess.com"]
[Date "2024.04.30"]
[Round "1"]
[White "pirulillo"]
[Black "arenal72"]
[Result "0-1"]
[WhiteElo "2306"]
[BlackElo "2625"]
[TimeControl "180+1"]
[EndTime "14:04:47 PDT"]
[Termination "arenal72 won by resignation"]

1. e4 {[%clk 0:02:54.6]} 1... Nc6 {[%clk 0:02:56.8]} 2. Bc4 {[%clk 0:02:51.1]}
2... Nf6 {[%clk 0:02:48.4]} 3. Nc3 {[%clk 0:02:49.4]} 3... e6 {[%clk 0:02:45]}
4. Nf3 {[%clk 0:02:43.9]} 4... d5 {[%clk 0:02:44.5]} 5. Bb5 {[%clk 0:02:27.5]}
5... dxe4 {[%clk 0:02:39.3]} 6. Ne5 {[%clk 0:02:26.6]} 6... Bd7 {[%clk
0:02:35.8]} 7. Nxd7 {[%clk 0:02:24.5]} 7... Qxd7 {[%clk 0:02:36.2]} 8. Qe2
{[%clk 0:02:22.8]} 8... a6 {[%clk 0:02:36.1]} 9. Bxc6 {[%clk 0:02:20.8]} 9...
Qxc6 {[%clk 0:02:35.8]} 10. O-O {[%clk 0:02:21.3]} 10... O-O-O {[%clk
0:02:26.8]} 11. Re1 {[%clk 0:02:18.9]} 11... Rd4 {[%clk 0:02:19.1]} 12. b3
{[%clk 0:02:15.3]} 12... Bc5 {[%clk 0:02:13.4]} 13. Bb2 {[%clk 0:02:13.8]} 13...
Rhd8 {[%clk 0:02:12.5]} 14. Rad1 {[%clk 0:02:12.6]} 14... Ba7 {[%clk 0:01:38.5]}
15. Na4 {[%clk 0:01:48.1]} 15... R4d5 {[%clk 0:01:37.5]} 16. Bxf6 {[%clk
0:01:45.6]} 16... gxf6 {[%clk 0:01:38.4]} 17. Qxe4 {[%clk 0:01:42.8]} 17... Rxd2
{[%clk 0:01:37.7]} 18. Rxd2 {[%clk 0:01:36.6]} 18... Rxd2 {[%clk 0:01:35.2]} 19.
Qxc6 {[%clk 0:01:34.1]} 19... Bxf2+ {[%clk 0:01:28.6]} 20. Kf1 {[%clk 0:01:33]}
20... bxc6 {[%clk 0:01:28.1]} 21. Rc1 {[%clk 0:01:30.1]} 21... Bd4 {[%clk
0:01:23.7]} 22. c3 {[%clk 0:01:21.6]} 22... Rf2+ {[%clk 0:01:17.3]} 23. Ke1
{[%clk 0:01:17.4]} 23... Be3 {[%clk 0:01:11.3]} 24. Rd1 {[%clk 0:01:15]} 24...
Rxg2 {[%clk 0:01:10.6]} 0-1

[Event "Late-Titled-Tuesday-Blitz-April-30-2024"]
[Site "Chess.com"]
[Date "2024.04.30"]
[Round "1"]
[White "anasta10"]
[Black "ChEsper99"]
[Result "1-0"]
[WhiteElo "2597"]
[BlackElo "2242"]
[TimeControl "180+1"]
[EndTime "14:04:47 PDT"]
[Termination "anasta10 won by resignation"]

1. Nf3 {[%clk 0:02:58.5]} 1... Nf6 {[%clk 0:02:58]} 2. c4 {[%clk 0:02:57.5]}
2... c6 {[%clk 0:02:54.8]} 3. Nc3 {[%clk 0:02:57.7]} 3... d5 {[%clk 0:02:55.1]}
4. cxd5 {[%clk 0:02:58.6]} 4... cxd5 {[%clk 0:02:56]} 5. d4 {[%clk 0:02:59]}
5... Nc6 {[%clk 0:02:52.9]} 6. Bf4 {[%clk 0:02:59.4]} 6... Bf5 {[%clk 0:02:39]}
7. Qb3 {[%clk 0:02:54]} 7... Na5 {[%clk 0:02:32.6]} 8. Qa4+ {[%clk 0:02:49.5]}
8... Bd7 {[%clk 0:02:32.5]} 9. Qc2 {[%clk 0:02:48.2]} 9... e6 {[%clk 0:02:30.8]}
10. e3 {[%clk 0:02:47.4]} 10... Rc8 {[%clk 0:02:30.4]} 11. Bd3 {[%clk
0:02:46.8]} 11... Bb4 {[%clk 0:02:29.8]} 12. O-O {[%clk 0:02:46.7]} 12... O-O
{[%clk 0:02:26.5]} 13. Bg5 {[%clk 0:02:44.7]} 13... h6 {[%clk 0:02:25.8]} 14.
Bh4 {[%clk 0:02:44]} 14... g5 {[%clk 0:02:20.8]} 15. Bg3 {[%clk 0:02:43.7]}
15... Nh5 {[%clk 0:02:20.6]} 16. Rac1 {[%clk 0:02:37.2]} 16... Nxg3 {[%clk
0:02:18.8]} 17. hxg3 {[%clk 0:02:38.1]} 17... Nc4 {[%clk 0:02:04.3]} 18. Qe2
{[%clk 0:02:28.9]} 18... Qa5 {[%clk 0:01:52.8]} 19. a3 {[%clk 0:02:11.7]} 19...
Nxa3 {[%clk 0:01:51.8]} 20. Ra1 {[%clk 0:02:07.5]} 20... Rxc3 {[%clk 0:01:41.7]}
21. bxc3 {[%clk 0:02:07.1]} 21... Bxc3 {[%clk 0:01:41.6]} 22. Ra2 {[%clk
0:02:06.8]} 22... b5 {[%clk 0:01:38.1]} 23. Ne5 {[%clk 0:02:02.7]} 23... Rd8
{[%clk 0:01:28.1]} 24. Qh5 {[%clk 0:01:58.4]} 24... Be8 {[%clk 0:01:21.2]} 25.
Qxh6 {[%clk 0:01:58.3]} 25... f5 {[%clk 0:00:58.2]} 26. Qxe6+ {[%clk 0:01:56.2]}
26... Kf8 {[%clk 0:00:55.1]} 27. Qf6+ {[%clk 0:01:46.4]} 27... Kg8 {[%clk
0:00:54.2]} 28. Qxg5+ {[%clk 0:01:43.4]} 28... Kf8 {[%clk 0:00:53.4]} 29. Qf6+
{[%clk 0:01:43.7]} 29... Kg8 {[%clk 0:00:53.6]} 30. Rxa3 {[%clk 0:01:40.6]} 1-0

[Event "Late-Titled-Tuesday-Blitz-April-30-2024"]
[Site "Chess.com"]
[Date "2024.04.30"]
[Round "1"]
[White "nochewycandy"]
[Black "jactorres"]
[Result "1-0"]
[WhiteElo "2807"]
[BlackElo "2446"]
[TimeControl "180+1"]
[EndTime "14:04:58 PDT"]
[Termination "nochewycandy won by resignation"]

1. Nf3 {[%clk 0:02:59.4]} 1... Nf6 {[%clk 0:02:55.2]} 2. g3 {[%clk 0:02:59]}
2... e6 {[%clk 0:02:52.4]} 3. Bg2 {[%clk 0:02:59.9]} 3... Be7 {[%clk 0:02:52.2]}
4. O-O {[%clk 0:03:00]} 4... d5 {[%clk 0:02:51.1]} 5. c4 {[%clk 0:03:00.9]} 5...
dxc4 {[%clk 0:02:49.8]} 6. Qa4+ {[%clk 0:03:00.8]} 6... Bd7 {[%clk 0:02:42.6]}
7. Qxc4 {[%clk 0:03:01.2]} 7... O-O {[%clk 0:02:42.6]} 8. Ne5 {[%clk 0:02:57.9]}
8... c6 {[%clk 0:02:34.8]} 9. d4 {[%clk 0:02:54.8]} 9... Na6 {[%clk 0:02:32.3]}
10. Nc3 {[%clk 0:02:47]} 10... Nc7 {[%clk 0:02:31.3]} 11. Nxd7 {[%clk
0:02:45.9]} 11... Qxd7 {[%clk 0:02:30.4]} 12. Rd1 {[%clk 0:02:44.9]} 12... Rfd8
{[%clk 0:02:21.2]} 13. e4 {[%clk 0:02:42.4]} 13... Rac8 {[%clk 0:02:19]} 14. Be3
{[%clk 0:02:40.9]} 14... h6 {[%clk 0:01:56]} 15. h3 {[%clk 0:02:37.6]} 15... a5
{[%clk 0:01:44.8]} 16. Kh2 {[%clk 0:02:33.2]} 16... b5 {[%clk 0:01:36.7]} 17.
Qe2 {[%clk 0:02:33.7]} 17... Na6 {[%clk 0:01:33]} 18. a3 {[%clk 0:02:28.8]}
18... b4 {[%clk 0:01:29.5]} 19. Qxa6 {[%clk 0:02:25.9]} 19... bxc3 {[%clk
0:01:24.6]} 20. bxc3 {[%clk 0:02:26.8]} 20... Ra8 {[%clk 0:01:19.3]} 21. Qc4
{[%clk 0:02:24.5]} 21... Rdc8 {[%clk 0:00:59.1]} 22. a4 {[%clk 0:02:20.7]} 22...
Rab8 {[%clk 0:00:50.5]} 23. Rab1 {[%clk 0:02:20.3]} 23... Qc7 {[%clk 0:00:48.4]}
24. Bf4 {[%clk 0:02:18.7]} 24... Qa7 {[%clk 0:00:11.9]} 25. Bxb8 {[%clk
0:02:18.1]} 25... Rxb8 {[%clk 0:00:12.8]} 26. Qxc6 {[%clk 0:02:15.6]} 26... Kh7
{[%clk 0:00:05.3]} 27. e5 {[%clk 0:02:15.8]} 27... Nd7 {[%clk 0:00:04.2]} 28.
Rxb8 {[%clk 0:02:14.9]} 28... Nxb8 {[%clk 0:00:04.1]} 29. Qe4+ {[%clk
0:02:14.9]} 29... Kg8 {[%clk 0:00:02.8]} 30. Rb1 {[%clk 0:02:15.3]} 30... Qc7
{[%clk 0:00:02.9]} 31. Rb7 {[%clk 0:02:14.8]} 1-0

[Event "Late-Titled-Tuesday-Blitz-April-30-2024"]
[Site "Chess.com"]
[Date "2024.04.30"]
[Round "1"]
[White "GiorgianBarbosa"]
[Black "AungTZ"]
[Result "0-1"]
[WhiteElo "2545"]
[BlackElo "2152"]
[TimeControl "180+1"]
[EndTime "14:05:04 PDT"]
[Termination "AungTZ won by checkmate"]

1. d4 {[%clk 0:03:00.3]} 1... Nf6 {[%clk 0:02:59.6]} 2. c4 {[%clk 0:03:01]} 2...
e6 {[%clk 0:02:59.7]} 3. Nc3 {[%clk 0:03:01.3]} 3... Bb4 {[%clk 0:02:59.1]} 4.
e3 {[%clk 0:03:01.7]} 4... c5 {[%clk 0:02:34.4]} 5. Ne2 {[%clk 0:03:02.6]} 5...
O-O {[%clk 0:02:23.9]} 6. a3 {[%clk 0:03:02]} 6... Bxc3+ {[%clk 0:02:17.1]} 7.
Nxc3 {[%clk 0:03:02.9]} 7... d6 {[%clk 0:02:12.3]} 8. g3 {[%clk 0:03:00.8]} 8...
Nc6 {[%clk 0:02:08.7]} 9. Bg2 {[%clk 0:03:01]} 9... Bd7 {[%clk 0:01:39.3]} 10.
O-O {[%clk 0:03:01.2]} 10... a6 {[%clk 0:01:38.9]} 11. Rb1 {[%clk 0:02:57.9]}
11... Qe7 {[%clk 0:01:32.7]} 12. b4 {[%clk 0:02:57]} 12... Rac8 {[%clk
0:01:24.1]} 13. bxc5 {[%clk 0:02:52.9]} 13... dxc5 {[%clk 0:01:23.7]} 14. Rxb7
{[%clk 0:02:50.3]} 14... Na5 {[%clk 0:01:21.1]} 15. Ra7 {[%clk 0:02:40.5]} 15...
Nxc4 {[%clk 0:01:20.5]} 16. Qe2 {[%clk 0:02:26.2]} 16... cxd4 {[%clk 0:01:19.1]}
17. exd4 {[%clk 0:02:26.5]} 17... Nxa3 {[%clk 0:01:03.8]} 18. Ne4 {[%clk
0:02:24.5]} 18... Nb5 {[%clk 0:00:41.6]} 19. Nxf6+ {[%clk 0:02:19.3]} 19... gxf6
{[%clk 0:00:41.4]} 20. Bh6 {[%clk 0:02:19.5]} 20... Kh8 {[%clk 0:00:23.5]} 21.
Bxf8 {[%clk 0:02:17.5]} 21... Rxf8 {[%clk 0:00:23.4]} 22. Rxa6 {[%clk
0:02:10.3]} 22... Nxd4 {[%clk 0:00:19.9]} 23. Qd2 {[%clk 0:02:09.2]} 23... Bb5
{[%clk 0:00:18.8]} 24. Qxd4 {[%clk 0:02:03.1]} 24... Bxa6 {[%clk 0:00:17.1]} 25.
Ra1 {[%clk 0:02:02.8]} 25... Bb5 {[%clk 0:00:14.5]} 26. Ra7 {[%clk 0:02:02.4]}
26... Qd8 {[%clk 0:00:13.1]} 27. Qc5 {[%clk 0:02:00.2]} 27... Qd1+ {[%clk
0:00:12.5]} 28. Bf1 {[%clk 0:02:00]} 28... Qxf1# {[%clk 0:00:12.8]} 0-1

[Event "Late-Titled-Tuesday-Blitz-April-30-2024"]
[Site "Chess.com"]
[Date "2024.04.30"]
[Round "1"]
[White "Indefatigable11"]
[Black "GothamChess"]
[Result "0-1"]
[WhiteElo "2373"]
[BlackElo "2673"]
[TimeControl "180+1"]
[EndTime "14:05:06 PDT"]
[Termination "GothamChess won by checkmate"]

1. d4 {[%clk 0:03:00.9]} 1... g6 {[%clk 0:02:59.1]} 2. c4 {[%clk 0:03:00.9]}
2... Bg7 {[%clk 0:02:59.6]} 3. Nf3 {[%clk 0:03:01.4]} 3... d6 {[%clk 0:03:00.1]}
4. g3 {[%clk 0:03:01.9]} 4... Nc6 {[%clk 0:02:59.4]} 5. Bg2 {[%clk 0:03:02.4]}
5... Bd7 {[%clk 0:03:00.1]} 6. O-O {[%clk 0:03:02.4]} 6... Qc8 {[%clk
0:03:00.6]} 7. Nc3 {[%clk 0:03:01.3]} 7... Bh3 {[%clk 0:03:00.6]} 8. e4 {[%clk
0:02:55.9]} 8... Bg4 {[%clk 0:02:53.7]} 9. Be3 {[%clk 0:02:46.1]} 9... e5 {[%clk
0:02:50.3]} 10. d5 {[%clk 0:02:32.2]} 10... Nd4 {[%clk 0:02:50.2]} 11. Bxd4
{[%clk 0:02:25.2]} 11... exd4 {[%clk 0:02:49.1]} 12. Nb5 {[%clk 0:02:25.3]}
12... Ne7 {[%clk 0:02:48.1]} 13. Nbxd4 {[%clk 0:02:20.8]} 13... O-O {[%clk
0:02:48.2]} 14. Qd3 {[%clk 0:02:18.9]} 14... c5 {[%clk 0:02:46.7]} 15. dxc6
{[%clk 0:02:14.6]} 15... bxc6 {[%clk 0:02:47.6]} 16. Rad1 {[%clk 0:02:08.2]}
16... Rb8 {[%clk 0:02:46.8]} 17. b3 {[%clk 0:02:07.8]} 17... Qa6 {[%clk
0:02:46.7]} 18. Rd2 {[%clk 0:02:00.5]} 18... Rfd8 {[%clk 0:02:41.4]} 19. Ne2
{[%clk 0:01:51.3]} 19... Qa5 {[%clk 0:02:35.9]} 20. h3 {[%clk 0:01:47.8]} 20...
Bc8 {[%clk 0:02:33.9]} 21. Qe3 {[%clk 0:01:42.2]} 21... d5 {[%clk 0:02:13.7]}
22. exd5 {[%clk 0:01:40.8]} 22... Nf5 {[%clk 0:02:13.9]} 23. Qf4 {[%clk
0:01:37.4]} 23... Ba6 {[%clk 0:02:09.6]} 24. dxc6 {[%clk 0:01:32.7]} 24... Re8
{[%clk 0:02:06.5]} 25. g4 {[%clk 0:01:12]} 25... Bh6 {[%clk 0:02:04.3]} 26. g5
{[%clk 0:01:12.2]} 26... Bg7 {[%clk 0:02:04.6]} 27. Ned4 {[%clk 0:01:11.7]}
27... Nxd4 {[%clk 0:02:00.9]} 28. Nxd4 {[%clk 0:01:11.4]} 28... Be5 {[%clk
0:02:01.5]} 29. Qf3 {[%clk 0:00:31.4]} 29... Qxd2 {[%clk 0:02:00.2]} 30. Rd1
{[%clk 0:00:31.2]} 30... Qxg5 {[%clk 0:01:56.4]} 31. c7 {[%clk 0:00:29.8]} 31...
Bxc7 {[%clk 0:01:54.6]} 32. Nc6 {[%clk 0:00:29.7]} 32... Bb7 {[%clk 0:01:51.6]}
33. Rd7 {[%clk 0:00:25.9]} 33... Re1# {[%clk 0:01:44.8]} 0-1

[Event "Late-Titled-Tuesday-Blitz-April-30-2024"]
[Site "Chess.com"]
[Date "2024.04.30"]
[Round "1"]
[White "super_emi_26"]
[Black "burritus"]
[Result "1-0"]
[WhiteElo "2755"]
[BlackElo "2428"]
[TimeControl "180+1"]
[EndTime "14:05:07 PDT"]
[Termination "super_emi_26 won on time"]

1. b3 {[%clk 0:03:00.9]} 1... e5 {[%clk 0:02:57.6]} 2. Bb2 {[%clk 0:03:01.8]}
2... Nc6 {[%clk 0:02:55.5]} 3. e3 {[%clk 0:03:02.5]} 3... Nf6 {[%clk 0:02:55.2]}
4. Nf3 {[%clk 0:03:01.9]} 4... d5 {[%clk 0:02:49.6]} 5. Nxe5 {[%clk 0:03:00.1]}
5... Bd6 {[%clk 0:02:47.7]} 6. Nxc6 {[%clk 0:02:59.3]} 6... bxc6 {[%clk
0:02:48.6]} 7. Nc3 {[%clk 0:02:59.3]} 7... O-O {[%clk 0:02:48.1]} 8. Be2 {[%clk
0:02:58]} 8... Re8 {[%clk 0:02:48.3]} 9. O-O {[%clk 0:02:55.8]} 9... h5 {[%clk
0:02:45.9]} 10. Bxh5 {[%clk 0:02:47.1]} 10... Nxh5 {[%clk 0:02:42.9]} 11. Qxh5
{[%clk 0:02:48]} 11... Re6 {[%clk 0:02:43]} 12. f4 {[%clk 0:02:46.4]} 12... Rh6
{[%clk 0:02:40.2]} 13. Qf3 {[%clk 0:02:46.5]} 13... Qh4 {[%clk 0:02:22.2]} 14.
h3 {[%clk 0:02:43.2]} 14... Rg6 {[%clk 0:02:22.1]} 15. Kh2 {[%clk 0:02:24.4]}
15... Bg4 {[%clk 0:01:45.9]} 16. Qf2 {[%clk 0:02:20.6]} 16... Qh5 {[%clk
0:01:27.1]} 17. Rae1 {[%clk 0:02:02.5]} 17... Re8 {[%clk 0:01:22.5]} 18. Ne2
{[%clk 0:02:01.8]} 18... c5 {[%clk 0:01:06.8]} 19. Ng3 {[%clk 0:01:58.8]} 19...
Qh6 {[%clk 0:00:55.3]} 20. Be5 {[%clk 0:01:56.9]} 20... Bf8 {[%clk 0:00:20.3]}
21. f5 {[%clk 0:01:51.3]} 1-0

[Event "Late-Titled-Tuesday-Blitz-April-30-2024"]
[Site "Chess.com"]
[Date "2024.04.30"]
[Round "1"]
[White "maurovargas01"]
[Black "CDOEspiao"]
[Result "0-1"]
[WhiteElo "1961"]
[BlackElo "2546"]
[TimeControl "180+1"]
[EndTime "14:05:20 PDT"]
[Termination "CDOEspiao won by resignation"]

1. e4 {[%clk 0:02:58.4]} 1... c5 {[%clk 0:02:59.6]} 2. Nc3 {[%clk 0:02:58.7]}
2... e6 {[%clk 0:02:59.9]} 3. f4 {[%clk 0:02:59.6]} 3... g6 {[%clk 0:02:58.6]}
4. Nf3 {[%clk 0:03:00.5]} 4... Bg7 {[%clk 0:02:59.1]} 5. d3 {[%clk 0:02:59.2]}
5... Nc6 {[%clk 0:02:58.8]} 6. g3 {[%clk 0:02:56.4]} 6... Nce7 {[%clk
0:02:58.4]} 7. Bg2 {[%clk 0:02:56.6]} 7... f5 {[%clk 0:02:54]} 8. O-O {[%clk
0:02:55.9]} 8... Nf6 {[%clk 0:02:53.5]} 9. e5 {[%clk 0:02:54.4]} 9... Nfd5
{[%clk 0:02:53.3]} 10. Nb5 {[%clk 0:02:53.7]} 10... O-O {[%clk 0:02:46.3]} 11.
Nd6 {[%clk 0:02:53.2]} 11... Rb8 {[%clk 0:02:38.4]} 12. a3 {[%clk 0:02:50.7]}
12... b5 {[%clk 0:02:35.9]} 13. c4 {[%clk 0:02:49.1]} 13... bxc4 {[%clk
0:02:34.6]} 14. dxc4 {[%clk 0:02:48.9]} 14... Nb6 {[%clk 0:02:33.7]} 15. b3
{[%clk 0:02:48.6]} 15... Bb7 {[%clk 0:02:23]} 16. a4 {[%clk 0:02:43.4]} 16...
Ba8 {[%clk 0:02:20.6]} 17. a5 {[%clk 0:02:29]} 17... Nbc8 {[%clk 0:02:16.3]} 18.
Nb5 {[%clk 0:02:27.5]} 18... Nc6 {[%clk 0:02:08.1]} 19. Ba3 {[%clk 0:02:24.2]}
19... Nb4 {[%clk 0:01:56.4]} 20. Qd2 {[%clk 0:02:17.6]} 20... a6 {[%clk
0:01:53.4]} 21. Nc3 {[%clk 0:02:10]} 21... Na7 {[%clk 0:01:46.5]} 22. Rab1
{[%clk 0:02:07.7]} 22... Nac6 {[%clk 0:01:46.2]} 23. Na4 {[%clk 0:02:06.4]}
23... Qe7 {[%clk 0:01:42.5]} 24. Qe3 {[%clk 0:01:59.6]} 24... Nc2 {[%clk
0:01:40.2]} 25. Qxc5 {[%clk 0:01:53.2]} 25... Nxa3 {[%clk 0:01:39.9]} 26. Qxe7
{[%clk 0:01:50.4]} 26... Nxe7 {[%clk 0:01:40.8]} 27. Nb6 {[%clk 0:01:43.6]}
27... Nxb1 {[%clk 0:01:38.3]} 28. Rc1 {[%clk 0:01:42.6]} 28... Bxf3 {[%clk
0:01:32.8]} 29. Bxf3 {[%clk 0:01:35.7]} 29... Nd2 {[%clk 0:01:33.1]} 30. Bg2
{[%clk 0:01:31.5]} 30... Rfd8 {[%clk 0:01:29.1]} 31. b4 {[%clk 0:01:12.4]} 31...
Nc6 {[%clk 0:01:22.8]} 32. Rb1 {[%clk 0:00:59.9]} 32... Nxb1 {[%clk 0:01:17.4]}
0-1

[Event "Late-Titled-Tuesday-Blitz-April-30-2024"]
[Site "Chess.com"]
[Date "2024.04.30"]
[Round "1"]
[White "lcmil"]
[Black "Legendinunknown"]
[Result "0-1"]
[WhiteElo "2453"]
[BlackElo "2814"]
[TimeControl "180+1"]
[EndTime "14:05:25 PDT"]
[Termination "Legendinunknown won by resignation"]

1. e4 {[%clk 0:02:51.5]} 1... e5 {[%clk 0:02:59.4]} 2. f4 {[%clk 0:02:49]} 2...
Bc5 {[%clk 0:02:56.3]} 3. Nf3 {[%clk 0:02:47.9]} 3... d6 {[%clk 0:02:56.6]} 4.
c3 {[%clk 0:02:44.9]} 4... Nf6 {[%clk 0:02:55.7]} 5. d4 {[%clk 0:02:42.9]} 5...
exd4 {[%clk 0:02:55.6]} 6. cxd4 {[%clk 0:02:43.1]} 6... Bb4+ {[%clk 0:02:56.1]}
7. Bd2 {[%clk 0:02:43.7]} 7... Bxd2+ {[%clk 0:02:50.9]} 8. Nbxd2 {[%clk
0:02:44.6]} 8... O-O {[%clk 0:02:50.4]} 9. Bd3 {[%clk 0:02:43.1]} 9... c5 {[%clk
0:02:36.3]} 10. dxc5 {[%clk 0:02:28]} 10... dxc5 {[%clk 0:02:33.2]} 11. Nc4
{[%clk 0:02:17.8]} 11... b5 {[%clk 0:02:24.9]} 12. Nce5 {[%clk 0:01:58.9]} 12...
c4 {[%clk 0:02:23.2]} 13. Bc2 {[%clk 0:01:54.6]} 13... Bb7 {[%clk 0:02:17.6]}
14. Qe2 {[%clk 0:01:49.8]} 14... Qa5+ {[%clk 0:02:10.8]} 15. Kf2 {[%clk
0:01:31.6]} 15... Qb6+ {[%clk 0:02:00.3]} 16. Kf1 {[%clk 0:01:16.8]} 16... Nc6
{[%clk 0:01:56.4]} 17. g4 {[%clk 0:01:08.9]} 17... Nd4 {[%clk 0:01:30]} 18. Nxd4
{[%clk 0:00:56.6]} 18... Qxd4 {[%clk 0:01:30.9]} 19. Rd1 {[%clk 0:00:55.3]}
19... Qxb2 {[%clk 0:01:29.4]} 20. Qg2 {[%clk 0:00:48.1]} 20... Rad8 {[%clk
0:01:25.6]} 21. Re1 {[%clk 0:00:47.2]} 21... Qc3 {[%clk 0:01:21]} 22. g5 {[%clk
0:00:44]} 22... Nh5 {[%clk 0:01:05.3]} 0-1

[Event "Late-Titled-Tuesday-Blitz-April-30-2024"]
[Site "Chess.com"]
[Date "2024.04.30"]
[Round "1"]
[White "LyonBeast"]
[Black "SHIVACalypso"]
[Result "1-0"]
[WhiteElo "3117"]
[BlackElo "2528"]
[TimeControl "180+1"]
[EndTime "14:05:27 PDT"]
[Termination "LyonBeast won by resignation"]

1. e4 {[%clk 0:02:58.3]} 1... e6 {[%clk 0:02:59.1]} 2. d4 {[%clk 0:02:58]} 2...
d5 {[%clk 0:02:59]} 3. exd5 {[%clk 0:02:56.8]} 3... exd5 {[%clk 0:02:58.3]} 4.
Nf3 {[%clk 0:02:57.1]} 4... Nf6 {[%clk 0:02:57.2]} 5. Bd3 {[%clk 0:02:57.4]}
5... Bd6 {[%clk 0:02:49.4]} 6. Qe2+ {[%clk 0:02:56.7]} 6... Qe7 {[%clk
0:02:49.7]} 7. Qxe7+ {[%clk 0:02:55.9]} 7... Kxe7 {[%clk 0:02:50.6]} 8. O-O
{[%clk 0:02:56.3]} 8... Re8 {[%clk 0:02:46.3]} 9. Nc3 {[%clk 0:02:54.9]} 9... h6
{[%clk 0:02:39.5]} 10. Nb5 {[%clk 0:02:54.2]} 10... Nc6 {[%clk 0:02:26.9]} 11.
Re1+ {[%clk 0:02:53.3]} 11... Be6 {[%clk 0:02:27.1]} 12. c3 {[%clk 0:02:49.3]}
12... a6 {[%clk 0:02:19.5]} 13. Nxd6 {[%clk 0:02:48.7]} 13... Kxd6 {[%clk
0:02:20.4]} 14. Bf4+ {[%clk 0:02:47.2]} 14... Kd7 {[%clk 0:02:20.3]} 15. h3
{[%clk 0:02:45.7]} 15... Re7 {[%clk 0:02:10.8]} 16. Re3 {[%clk 0:02:42]} 16...
Rae8 {[%clk 0:02:10.3]} 17. Rae1 {[%clk 0:02:42.3]} 17... Ne4 {[%clk 0:01:46.5]}
18. c4 {[%clk 0:02:28]} 18... f5 {[%clk 0:01:34.2]} 19. c5 {[%clk 0:02:27.7]}
19... g5 {[%clk 0:01:30.9]} 20. Ne5+ {[%clk 0:02:26.4]} 20... Nxe5 {[%clk
0:01:27.9]} 21. Bxe5 {[%clk 0:02:27.3]} 21... f4 {[%clk 0:01:12.5]} 22. R3e2
{[%clk 0:02:27.7]} 22... Bf5 {[%clk 0:01:07.8]} 23. Bc2 {[%clk 0:02:27.9]} 23...
Bh7 {[%clk 0:00:47.8]} 24. Kh2 {[%clk 0:02:20.3]} 24... c6 {[%clk 0:00:44]} 25.
b4 {[%clk 0:01:56.6]} 25... Nc3 {[%clk 0:00:40]} 26. Bxh7 {[%clk 0:01:56.6]}
26... Rxh7 {[%clk 0:00:37.8]} 27. Rc2 {[%clk 0:01:55.8]} 27... Ne4 {[%clk
0:00:20.7]} 28. a4 {[%clk 0:01:56]} 28... Ke6 {[%clk 0:00:15.7]} 29. f3 {[%clk
0:01:54.9]} 29... Kf5 {[%clk 0:00:11.4]} 30. fxe4+ {[%clk 0:01:55.3]} 30... dxe4
{[%clk 0:00:12.3]} 31. g4+ {[%clk 0:01:56]} 31... fxg3+ {[%clk 0:00:10.6]} 32.
Kxg3 {[%clk 0:01:56.9]} 32... Rd7 {[%clk 0:00:08.7]} 33. Rf2+ {[%clk 0:01:57.3]}
33... Kg6 {[%clk 0:00:09.2]} 34. Rxe4 {[%clk 0:01:57.4]} 34... h5 {[%clk
0:00:08.2]} 35. Rf6+ {[%clk 0:01:57]} 1-0

[Event "Late-Titled-Tuesday-Blitz-April-30-2024"]
[Site "Chess.com"]
[Date "2024.04.30"]
[Round "1"]
[White "carloseduar100"]
[Black "ozates"]
[Result "0-1"]
[WhiteElo "2210"]
[BlackElo "2584"]
[TimeControl "180+1"]
[EndTime "14:05:28 PDT"]
[Termination "ozates won by resignation"]

1. d4 {[%clk 0:03:00]} 1... Nf6 {[%clk 0:02:59.4]} 2. Bg5 {[%clk 0:02:59]} 2...
g6 {[%clk 0:02:56.3]} 3. Bxf6 {[%clk 0:02:47.1]} 3... exf6 {[%clk 0:02:57.2]} 4.
g3 {[%clk 0:02:47.4]} 4... f5 {[%clk 0:02:57.5]} 5. Bg2 {[%clk 0:02:45.1]} 5...
h5 {[%clk 0:02:57.8]} 6. e3 {[%clk 0:02:41.5]} 6... h4 {[%clk 0:02:57.9]} 7. Nd2
{[%clk 0:02:41.2]} 7... Bh6 {[%clk 0:02:55.3]} 8. c4 {[%clk 0:02:41.3]} 8... d6
{[%clk 0:02:33.9]} 9. b4 {[%clk 0:02:41.5]} 9... Nd7 {[%clk 0:02:34.4]} 10. Ne2
{[%clk 0:02:41.4]} 10... Nf6 {[%clk 0:02:34.1]} 11. a4 {[%clk 0:02:41.3]} 11...
Ng4 {[%clk 0:02:32.1]} 12. a5 {[%clk 0:02:38]} 12... Bxe3 {[%clk 0:02:30.3]} 13.
O-O {[%clk 0:02:18.5]} 13... hxg3 {[%clk 0:02:14.2]} 14. fxe3 {[%clk 0:02:08.7]}
14... Rxh2 {[%clk 0:02:13.7]} 15. Nxg3 {[%clk 0:02:02.9]} 15... Rxg2+ {[%clk
0:02:12.3]} 16. Kxg2 {[%clk 0:01:54.9]} 16... Nxe3+ {[%clk 0:02:11.6]} 17. Kf2
{[%clk 0:01:55.2]} 17... Nxd1+ {[%clk 0:02:12.5]} 18. Raxd1 {[%clk 0:01:55.3]}
18... Kf8 {[%clk 0:02:09.4]} 19. Nf3 {[%clk 0:01:55.3]} 19... Kg7 {[%clk
0:02:05.5]} 20. Rfe1 {[%clk 0:01:54.6]} 20... Bd7 {[%clk 0:02:05.2]} 21. Re2
{[%clk 0:01:51.1]} 21... f4 {[%clk 0:02:04]} 22. Ne4 {[%clk 0:01:47.7]} 22... d5
{[%clk 0:01:55.7]} 23. cxd5 {[%clk 0:01:46.8]} 23... Bb5 {[%clk 0:01:55.7]} 24.
Red2 {[%clk 0:01:41.9]} 24... Qxd5 {[%clk 0:01:55.1]} 25. Nc3 {[%clk 0:01:42.2]}
25... Qc4 {[%clk 0:01:53.3]} 26. Nxb5 {[%clk 0:01:42.5]} 26... Qxb5 {[%clk
0:01:54.2]} 27. d5 {[%clk 0:01:39.9]} 27... Qxb4 {[%clk 0:01:53.5]} 28. d6
{[%clk 0:01:40.3]} 28... cxd6 {[%clk 0:01:52.6]} 29. Rxd6 {[%clk 0:01:41.2]}
29... Qxa5 {[%clk 0:01:51.9]} 30. Rd7 {[%clk 0:01:41.5]} 30... Rc8 {[%clk
0:01:46.3]} 31. Nd4 {[%clk 0:01:21.3]} 31... Qc3 {[%clk 0:01:34.4]} 32. Ne6+
{[%clk 0:01:14.8]} 32... Kf6 {[%clk 0:01:33.7]} 33. Nxf4 {[%clk 0:01:15.7]}
33... Qb2+ {[%clk 0:01:32.8]} 34. Kf3 {[%clk 0:01:11.7]} 34... Rc3+ {[%clk
0:01:32.4]} 35. Kg4 {[%clk 0:01:06.9]} 35... Rc4 {[%clk 0:01:31.9]} 36. R1d6+
{[%clk 0:01:02.8]} 36... Kg7 {[%clk 0:01:31.4]} 37. Rd5 {[%clk 0:00:55]} 37...
Qf6 {[%clk 0:01:25.5]} 0-1